fUST/lending_fUST_20240720
["ID","MTS","AMOUNT","RATE_DAILY","PERIOD"]
[332730523,1721490655748,-157.78037707,0.0001536,2]
[332730524,1721490655759,-500.0,0.0001536,2]
[332730525,1721490655768,-500.0,0.0001536,2]
[332730526,1721490655778,-500.0,0.0001536,2]
[332730527,1721490655790,-423.73046473,0.0001536,2]
[332730528,1721490655803,-1189.82,0.0001536,2]
[332730529,1721490655814,-500.0,0.0001536,2]
[332730530,1721490655824,-500.0,0.0001536,2]
[332730531,1721490655835,-718.68,0.0001536,2]
[332730532,1721490655847,-500.0,0.0001536,2]
[332730533,1721490655856,-501.72983271,0.0001536,2]
[332730534,1721490655868,-502.63355936,0.0001536,2]
[332730535,1721490655878,-500.0,0.0001536,2]
[332730536,1721490655888,-500.0,0.0001536,2]
[332730537,1721490655896,-500.0,0.0001536,2]
[332730538,1721490655906,-500.0,0.0001536,2]
[332730539,1721490655915,-500.0,0.0001536,2]
[332730540,1721490655925,-500.0,0.0001536,2]
[332730541,1721490655935,-500.0,0.0001536,2]
[332730542,1721490655946,-500.0,0.0001536,2]
[332730543,1721490655957,-1068.47,0.0001536,2]
[332730544,1721490655969,-500.0,0.0001536,2]
[332730545,1721490655980,-1131.22,0.0001536,2]
[332730546,1721490655990,-500.0,0.0001536,2]
[332730547,1721490655999,-2897.29,0.0001536,2]
[332730548,1721490656011,-500.0,0.0001536,2]
[332730549,1721490656022,-500.0,0.0001536,2]
[332730550,1721490656033,-500.0,0.0001536,2]
[332730551,1721490656045,-161.72252877,0.0001536,2]
[332730552,1721490656055,-500.0,0.0001536,2]
[332730553,1721490656066,-605.36,0.0001536,2]
[332730554,1721490656076,-762.42,0.0001536,2]
[332730555,1721490656086,-1585.46,0.0001536,2]
[332730556,1721490656095,-710.94,0.0001536,2]
[332730557,1721490656106,-500.0,0.0001536,2]
[332730558,1721490656119,-501.6,0.0001536,2]
[332730559,1721490656131,-500.0,0.0001536,2]
[332730560,1721490656141,-500.0,0.0001536,2]
[332730561,1721490656151,-500.0,0.0001536,2]
[332730562,1721490656162,-500.0,0.0001536,2]
[332730563,1721490656173,-337.62634337,0.0001536,2]
[332730564,1721490656183,-500.0,0.0001536,2]
[332730565,1721490656196,-500.0,0.0001536,2]
[332730566,1721490656207,-500.0,0.0001536,2]
[332730567,1721490656218,-984.39,0.0001536,2]
[332730568,1721490656229,-500.0,0.0001536,2]
[332730569,1721490656240,-500.0,0.0001536,2]
[332730570,1721490656250,-994.69,0.0001536,2]
[332730571,1721490656261,-500.0,0.0001536,2]
[332730572,1721490656272,-320.7322929,0.0001536,2]
[332730573,1721490656285,-500.0,0.0001536,2]
[332730574,1721490656296,-737.79,0.0001536,2]
[332730575,1721490656305,-500.0,0.0001536,2]
[332730576,1721490656315,-500.0,0.0001536,2]
[332730577,1721490656324,-500.0,0.00015381,2]
[332730578,1721490656335,-2103.62,0.00015401,2]
[332730579,1721490656345,-625.02644513,0.00015448,2]
[332730580,1721490656355,-415.26668233,0.00015488,2]
[332730581,1721490656364,-500.0,0.00015488,2]
[332730582,1721490656373,-351.71501332,0.00015488,2]
[332730583,1721490656383,-500.0,0.00015488,2]
[332730584,1721490656392,-500.0,0.00015488,2]
[332730585,1721490656402,-989.02,0.00015488,2]
[332730586,1721490656413,-630.86,0.00015488,2]
[332730587,1721490656423,-828.19,0.00015488,2]
[332730588,1721490656433,-1071.23,0.00015488,2]
[332730589,1721490656443,-500.0,0.00015488,2]
[332730590,1721490656453,-703.44,0.00015488,2]
[332730591,1721490656464,-624.25,0.00015488,2]
[332730592,1721490656475,-500.0,0.00015488,2]
[332730593,1721490656485,-500.0,0.00015488,2]
[332730594,1721490656494,-526.52,0.00015488,2]
[332730595,1721490656504,-500.0,0.00015488,2]
[332730596,1721490656514,-418.79387608,0.00015488,2]
[332730597,1721490656525,-1214.35,0.00015488,2]
[332730598,1721490656535,-500.0,0.00015488,2]
[332730599,1721490656544,-737.48,0.00015488,2]
[332730600,1721490656554,-527.11963763,0.00015488,2]
[332730601,1721490656564,-500.0,0.00015488,2]
[332730602,1721490656574,-500.0,0.00015488,2]
[332730603,1721490656583,-150.0,0.00015488,2]
[332730604,1721490656593,-500.0,0.00015488,2]
[332730605,1721490656603,-506.54,0.00015488,2]
[332730606,1721490656612,-551.98,0.00015488,2]
[332730607,1721490656622,-570.59373138,0.00015488,2]
[332730608,1721490656632,-596.4,0.00015498,2]
[332730609,1721490656642,-500.0,0.00015498,2]
[332730610,1721490656652,-588.56,0.00015498,2]
[332730611,1721490656662,-1336.55,0.00015498,2]
[332730612,1721490656671,-564.06,0.00015498,2]
[332730613,1721490656680,-781.31,0.00015498,2]
[332730614,1721490656690,-3134.46,0.00015498,2]
[332730615,1721490656699,-960.96,0.00015498,2]
[332730616,1721490656708,-738.78,0.00015498,2]
[332730617,1721490656719,-9920.47,0.00015498,2]
[332730618,1721490656728,-1954.12,0.00015498,2]
[332730619,1721490656737,-3918.54,0.00015498,2]
[332730620,1721490656746,-3036.74,0.00015498,2]
[332730621,1721490656756,-3238.59,0.00015498,2]
[332730622,1721490656765,-2305.92,0.00015498,2]
[332730623,1721490656774,-5210.73,0.00015498,2]
[332730624,1721490656783,-13029.34,0.00015498,2]
[332730625,1721490656794,-6147.63,0.00015498,2]
[332730626,1721490656805,-3092.34,0.00015498,2]
[332730627,1721490656814,-2384.71,0.00015498,2]
[332730628,1721490656824,-8339.41,0.00015498,2]
[332730629,1721490656833,-3619.84,0.00015498,2]
[332730630,1721490656844,-500.0,0.00015498,2]
[332730631,1721490656853,-1326.31,0.00015498,2]
[332730632,1721490656863,-856.42,0.00015498,2]
[332730633,1721490656873,-1365.63,0.00015498,2]
[332730634,1721490656883,-1323.73,0.00015498,2]
[332730635,1721490656893,-500.0,0.00015498,2]
[332730636,1721490656903,-500.0,0.00015498,2]
[332730637,1721490656912,-1612.69,0.00015498,2]
[332730638,1721490656922,-500.0,0.00015498,2]
[332730639,1721490656932,-500.0,0.00015498,2]
[332730640,1721490656942,-3171.01,0.00015498,2]
[332730641,1721490656952,-2380.43,0.00015498,2]
[332730642,1721490656963,-500.0,0.00015498,2]
[332730643,1721490656972,-535.32,0.00015498,2]
[332730644,1721490656982,-816.87,0.00015499,2]
[332730645,1721490656994,-500.0,0.00015499,2]
[332730646,1721490657003,-644.01,0.00015499,2]
[332730647,1721490657013,-1109.33,0.00015499,2]
[332730648,1721490657023,-764.62,0.00015499,2]
[332730649,1721490657032,-589.68,0.00015499,2]
[332730650,1721490657042,-500.0,0.00015499,2]
[332730651,1721490657051,-500.0,0.00015499,2]
[332730652,1721490657061,-500.0,0.00015499,2]
[332730653,1721490657071,-2258.62,0.00015499,2]
[332730654,1721490657080,-2208.94,0.00015499,2]
[332730655,1721490657090,-500.0,0.00015499,2]
[332730656,1721490657099,-1676.12,0.00015499,2]
[332730657,1721490657109,-3262.98,0.00015499,2]
[332730658,1721490657118,-2228.19,0.00015499,2]
[332730659,1721490657127,-2706.61,0.00015499,2]
[332730660,1721490657137,-1270.16,0.00015499,2]
[332730661,1721490657147,-500.0,0.00015499,2]
[332730662,1721490657156,-642.53,0.00015499,2]
[332730663,1721490657165,-802.79,0.00015499,2]
[332730664,1721490657175,-709.79,0.00015499,2]
[332730665,1721490657185,-21939.8,0.00015499,2]
[332730666,1721490657194,-680.05,0.00015499,2]
[332730667,1721490657203,-500.0,0.00015499,2]
[332730668,1721490657214,-3547.71,0.00015499,2]
[332730669,1721490657223,-3668.77,0.00015499,2]
[332730670,1721490657232,-729.38,0.00015499,2]
[332730671,1721490657241,-375.91272982,0.00015499,2]
[332730672,1721490657251,-699.13,0.00015499,2]
[332730673,1721490657260,-1769.08,0.00015499,2]
[332730674,1721490657270,-500.0,0.00015499,2]
[332730675,1721490657280,-500.0,0.00015499,2]
[332730676,1721490657291,-630.75,0.00015499,2]
[332730677,1721490657300,-866.94,0.00015499,2]
[332730678,1721490657310,-500.0,0.00015499,2]
[332730679,1721490657321,-2342.31,0.00015499,2]
[332730680,1721490657332,-500.0,0.00015499,2]
[332730681,1721490657342,-10408.57,0.00015499,2]
[332730682,1721490657353,-1500.0,0.000155,2]
[332730683,1721490657363,-1115.51,0.00015501,2]
[332730684,1721490657374,-1411.44,0.00015501,2]
[332730685,1721490657385,-500.0,0.00015501,2]
[332730686,1721490657396,-5389.14,0.00015501,2]
[332730687,1721490657405,-2372.21,0.00015501,2]
[332730688,1721490657415,-500.0,0.00015501,2]
[332730689,1721490657425,-3842.19,0.00015501,2]
[332730690,1721490657435,-574.86,0.00015501,2]
[332730691,1721490657444,-1798.23,0.00015501,2]
[332730692,1721490657453,-1214.62,0.00015501,2]
[332730693,1721490657463,-749.13,0.00015501,2]
[332730694,1721490657472,-4527.59,0.00015501,2]
[332730695,1721490657482,-542.02,0.00015501,2]
[332730696,1721490657492,-2470.16,0.00015501,2]
[332730697,1721490657501,-4624.65,0.00015501,2]
[332730698,1721490657511,-562.4,0.0001551,2]
[332730699,1721490657521,-500.0,0.0001551,2]
[332730700,1721490657530,-500.0,0.0001551,2]
[332730701,1721490657540,-2418.71,0.0001551,2]
[332730702,1721490657549,-749.26,0.0001551,2]
[332730703,1721490657559,-500.0,0.0001551,2]
[332730704,1721490657568,-1398.75,0.0001551,2]
[332730705,1721490657578,-593.92,0.0001551,2]
[332730706,1721490657588,-986.72,0.0001551,2]
[332730707,1721490657597,-500.0,0.0001551,2]
[332730708,1721490657607,-500.0,0.0001551,2]
[332730709,1721490657616,-500.0,0.0001551,2]
[332730710,1721490657626,-500.0,0.0001551,2]
[332730711,1721490657635,-500.0,0.0001551,2]
[332730712,1721490657645,-930.06,0.0001551,2]
[332730713,1721490657655,-500.0,0.0001551,2]
[332730714,1721490657664,-500.0,0.0001551,2]
[332730715,1721490657674,-500.0,0.0001551,2]
[332730716,1721490657683,-500.0,0.0001551,2]
[332730717,1721490657693,-652.64,0.0001551,2]
[332730718,1721490657703,-1262.53,0.0001551,2]
[332730719,1721490657714,-500.0,0.0001551,2]
[332730720,1721490657724,-500.0,0.0001551,2]
[332730721,1721490657733,-1045.3,0.0001551,2]
[332730722,1721490657743,-500.0,0.0001551,2]
[332730723,1721490657753,-2580.08,0.0001551,2]
[332730724,1721490657762,-500.0,0.0001551,2]
[332730725,1721490657772,-500.0,0.0001551,2]
[332730726,1721490657781,-500.0,0.0001551,2]
[332730727,1721490657790,-2783.24,0.0001551,2]
[332730728,1721490657800,-646.89391767,0.0001551,2]
[332730729,1721490657812,-500.0,0.0001551,2]
[332730730,1721490657822,-500.0,0.0001551,2]
[332730731,1721490657831,-500.0,0.0001551,2]
[332730732,1721490657842,-500.0,0.0001551,2]
[332730733,1721490657851,-961.14,0.0001551,2]
[332730734,1721490657861,-500.0,0.0001551,2]
[332730735,1721490657871,-515.5880543,0.0001551,2]
[332730736,1721490657882,-500.0,0.0001551,2]
[332730737,1721490657892,-819.99,0.0001551,2]
[332730738,1721490657902,-626.67,0.0001551,2]
[332730739,1721490657911,-644.68,0.0001551,2]
[332730740,1721490657921,-503.96679384,0.0001551,2]
[332730741,1721490657930,-500.0,0.0001551,2]
[332730742,1721490657940,-500.0,0.0001551,2]
[332730743,1721490657949,-500.0,0.0001551,2]
[332730744,1721490657959,-736.56,0.0001551,2]
[332730745,1721490657969,-575.77,0.0001551,2]
[332730746,1721490657979,-500.0,0.0001551,2]
[332730747,1721490657990,-500.0,0.0001551,2]
[332730748,1721490657999,-1127.84,0.0001551,2]
[332730749,1721490658010,-384.92364276,0.0001551,2]
[332730750,1721490658021,-538.62111057,0.0001551,2]
[332730751,1721490658030,-1989.55,0.0001551,2]
[332730752,1721490658040,-500.0,0.0001551,2]
[332730753,1721490658050,-500.0,0.0001551,2]
[332730754,1721490658059,-500.0,0.0001551,2]
[332730755,1721490658069,-643.83,0.0001551,2]
[332730756,1721490658079,-857.46,0.0001551,2]
[332730757,1721490658088,-500.0,0.0001551,2]
[332730758,1721490658098,-500.0,0.0001551,2]
[332730759,1721490658107,-2060.39,0.0001551,2]
[332730760,1721490658117,-1035.25,0.0001551,2]
[332730761,1721490658126,-500.0,0.0001551,2]
[332730762,1721490658136,-500.0,0.0001551,2]
[332730763,1721490658146,-500.0,0.0001551,2]
[332730764,1721490658155,-976.92,0.0001551,2]
[332730765,1721490658165,-500.0,0.0001551,2]
[332730766,1721490658174,-500.0,0.0001551,2]
[332730767,1721490658184,-894.49,0.0001551,2]
[332730768,1721490658324,-734.81,0.0001551,2]
[332730769,1721490658364,-500.0,0.0001551,2]
[332730770,1721490658374,-500.0,0.0001551,2]
[332730771,1721490658383,-1395.86,0.0001551,2]
[332730772,1721490658392,-500.0,0.0001551,2]
[332730773,1721490658402,-1725.49,0.0001551,2]
[332730774,1721490658411,-500.0,0.0001551,2]
[332730775,1721490658421,-10196.05,0.0001551,2]
[332730776,1721490658430,-814.58,0.0001551,2]
[332730777,1721490658440,-856.67,0.0001551,2]
[332730778,1721490658449,-500.0,0.0001551,2]
[332730779,1721490658458,-500.0,0.0001551,2]
[332730780,1721490658468,-500.0,0.0001551,2]
[332730781,1721490658477,-1401.78,0.0001551,2]
[332730782,1721490658487,-2560.67,0.0001551,2]
[332730783,1721490658496,-500.0,0.0001551,2]
[332730784,1721490658506,-500.0,0.0001551,2]
[332730785,1721490658515,-6101.97,0.0001551,2]
[332730786,1721490658525,-500.0,0.0001551,2]
[332730787,1721490658534,-1118.85,0.0001551,2]
[332730788,1721490658543,-500.0,0.0001551,2]
[332730789,1721490658553,-500.0,0.0001551,2]
[332730790,1721490658562,-500.0,0.0001551,2]
[332730791,1721490658571,-500.0,0.0001551,2]
[332730792,1721490658581,-593.62,0.0001551,2]
[332730793,1721490658590,-500.0,0.0001551,2]
[332730794,1721490658600,-502.95,0.0001551,2]
[332730795,1721490658609,-500.0,0.0001551,2]
[332730796,1721490658619,-689.34,0.0001551,2]
[332730797,1721490658628,-467.3288532,0.0001551,2]
[332730798,1721490658638,-563.96,0.0001551,2]
[332730799,1721490658648,-1967.52,0.00015511,2]
[332730800,1721490658657,-1764.57,0.00015511,2]
[332730801,1721490658666,-3086.74,0.00015511,2]
[332730802,1721490658675,-1172.02,0.00015511,2]
[332730803,1721490658685,-1972.47,0.00015511,2]
[332730804,1721490658695,-847.4,0.00015511,2]
[332730805,1721490658704,-500.0,0.00015511,2]
[332730806,1721490658714,-1458.47,0.00015511,2]
[332730807,1721490658723,-1921.59,0.00015511,2]
[332730808,1721490658732,-500.0,0.00015511,2]
[332730809,1721490658742,-652.54,0.00015511,2]
[332730810,1721490658751,-530.16,0.00015511,2]
[332730811,1721490658760,-500.0,0.00015511,2]
[332730812,1721490658769,-500.0,0.00015511,2]
[332730813,1721490658779,-679.13,0.00015511,2]
[332730814,1721490658788,-3056.03,0.00015511,2]
[332730815,1721490658799,-500.0,0.00015511,2]
[332730816,1721490658810,-500.0,0.00015511,2]
[332730817,1721490658820,-1343.29,0.00015511,2]
[332730818,1721490658829,-12025.36,0.00015511,2]
[332730819,1721490658839,-500.0,0.00015511,2]
[332730820,1721490658849,-1011.12,0.00015511,2]
[332730821,1721490658859,-1808.36,0.00015511,2]
[332730822,1721490658868,-1616.38,0.00015559,2]
[332730823,1721490658879,-3704.58,0.00015559,2]
[332730824,1721490658889,-586.07,0.00015559,2]
[332730825,1721490658899,-16708.65,0.00015559,2]
[332730826,1721490658908,-44570.67,0.00015559,2]
[332730827,1721490658918,-679.7791655,0.00015593,2]
[332730828,1721490658927,-500.0,0.00015622,2]
[332730829,1721490658937,-511.21,0.00015622,2]
[332730830,1721490658946,-855.71,0.00015622,2]
[332730831,1721490658955,-538.07,0.00015622,2]
[332730832,1721490658966,-500.0,0.00015622,2]
[332730833,1721490658976,-1331.09,0.00015622,2]
[332730834,1721490658985,-519.12,0.00015622,2]
[332730835,1721490658994,-594.22,0.00015622,2]
[332730836,1721490659004,-500.0,0.00015622,2]
[332730837,1721490659013,-3473.23,0.00015622,2]
[332730838,1721490659023,-914.37,0.00015622,2]
[332730839,1721490659032,-1047.43,0.00015622,2]
[332730840,1721490659042,-399.84210935,0.00015622,2]
[332730841,1721490659051,-1163.86,0.00015622,2]
[332730842,1721490659060,-914.49,0.00015622,2]
[332730843,1721490659069,-500.0,0.00015622,2]
[332730844,1721490659079,-500.0,0.00015622,2]
[332730845,1721490659088,-4278.72,0.00015622,2]
[332730846,1721490659097,-500.0,0.00015622,2]
[332730847,1721490659107,-1463.94,0.00015622,2]
[332730848,1721490659116,-546.72,0.00015622,2]
[332730849,1721490659126,-500.0,0.00015622,2]
[332730850,1721490659135,-500.0,0.00015622,2]
[332730851,1721490659145,-500.0,0.00015622,2]
[332730852,1721490659154,-934.67,0.00015622,2]
[332730853,1721490659163,-687.02,0.00015622,2]
[332730854,1721490659172,-2961.39,0.00015622,2]
[332730855,1721490659182,-500.0,0.00015622,2]
[332730856,1721490659191,-1880.26,0.00015622,2]
[332730857,1721490659201,-214.02389519,0.00015622,2]
[332730858,1721490659211,-557.35,0.00015622,2]
[332730859,1721490659221,-500.0,0.00015622,2]
[332730860,1721490659230,-1506.63,0.00015622,2]
[332730861,1721490659239,-507.53,0.00015622,2]
[332730862,1721490659249,-655.65,0.00015622,2]
[332730863,1721490659258,-1137.55,0.00015622,2]
[332730864,1721490659267,-1045.37,0.00015622,2]
[332730865,1721490659277,-784.38,0.00015622,2]
[332730866,1721490659286,-4152.27,0.00015622,2]
[332730867,1721490659296,-500.0,0.00015623,2]
[332730868,1721490659305,-500.0,0.00015623,2]
[332730869,1721490659314,-570.19,0.00015623,2]
[332730870,1721490659324,-500.0,0.00015623,2]
[332730871,1721490659333,-1425.22,0.00015623,2]
[332730872,1721490659343,-582.99,0.00015623,2]
[332730873,1721490659352,-2704.37,0.00015623,2]
[332730874,1721490659361,-500.0,0.00015623,2]
[332730875,1721490659371,-500.0,0.00015623,2]
[332730876,1721490659380,-500.0,0.00015623,2]
[332730877,1721490659389,-562.25,0.00015623,2]
[332730878,1721490659399,-973.63,0.00015623,2]
[332730879,1721490659409,-1950.43,0.00015623,2]
[332730880,1721490659418,-2305.47,0.00015623,2]
[332730881,1721490659428,-500.0,0.00015634,2]
[332730882,1721490659438,-500.0,0.00015634,2]
[332730883,1721490659448,-500.0,0.00015634,2]
[332730884,1721490659457,-500.0,0.00015634,2]
[332730885,1721490659468,-500.0,0.00015634,2]
[332730886,1721490659477,-500.0,0.00015634,2]
[332730887,1721490659487,-500.0,0.00015634,2]
[332730888,1721490659496,-722.84,0.00015634,2]
[332730889,1721490659506,-996.68,0.00015634,2]
[332730890,1721490659516,-621.70287847,0.00015634,2]
[332730891,1721490659525,-500.0,0.00015634,2]
[332730892,1721490659534,-608.35,0.00015634,2]
[332730893,1721490659544,-500.0,0.00015634,2]
[332730894,1721490659554,-500.0,0.00015634,2]
[332730895,1721490659563,-500.0,0.00015634,2]
[332730896,1721490659573,-2395.97,0.00015634,2]
[332730897,1721490659583,-324.77928867,0.00015634,2]
[332730898,1721490659593,-500.0,0.00015634,2]
[332730899,1721490659603,-641.96,0.00015634,2]
[332730900,1721490659613,-500.0,0.00015634,2]
[332730901,1721490659622,-500.0,0.00015634,2]
[332730902,1721490659632,-500.0,0.00015634,2]
[332730903,1721490659642,-500.0,0.00015634,2]
[332730904,1721490659651,-500.0,0.00015634,2]
[332730905,1721490659661,-500.0,0.00015634,2]
[332730906,1721490659672,-820.83,0.00015634,2]
[332730907,1721490659682,-582.4,0.00015634,2]
[332730908,1721490659691,-500.0,0.00015634,2]
[332730909,1721490659701,-516.51303496,0.00015634,2]
[332730910,1721490659712,-500.0,0.00015634,2]
[332730911,1721490659721,-1189.82,0.00015634,2]
[332730912,1721490659731,-500.0,0.00015634,2]
[332730913,1721490659741,-500.0,0.00015634,2]
[332730914,1721490659751,-718.68,0.00015634,2]
[332730915,1721490659760,-500.0,0.00015634,2]
[332730916,1721490659770,-500.0,0.00015634,2]
[332730917,1721490659779,-500.0,0.00015634,2]
[332730918,1721490659790,-500.0,0.00015634,2]
[332730919,1721490659802,-500.0,0.00015634,2]
[332730920,1721490659811,-500.0,0.00015634,2]
[332730921,1721490659821,-178.99459703,0.00015634,2]
[332730922,1721490659830,-500.0,0.00015634,2]
[332730923,1721490659840,-1068.47,0.00015634,2]
[332730924,1721490659850,-500.0,0.00015634,2]
[332730925,1721490659859,-1131.22,0.00015634,2]
[332730926,1721490659870,-500.0,0.00015634,2]
[332730927,1721490659881,-2897.29,0.00015634,2]
[332730928,1721490659890,-500.0,0.00015634,2]
[332730929,1721490659899,-500.0,0.00015634,2]
[332730930,1721490659909,-500.0,0.00015634,2]
[332730931,1721490659919,-605.36,0.00015634,2]
[332730932,1721490659931,-762.42,0.00015634,2]
[332730933,1721490659941,-1585.46,0.00015634,2]
[332730934,1721490659951,-710.94,0.00015634,2]
[332730935,1721490659960,-500.0,0.00015634,2]
[332730936,1721490659970,-501.6,0.00015634,2]
[332730937,1721490659980,-500.0,0.00015634,2]
[332730938,1721490659989,-500.0,0.00015634,2]
[332730939,1721490660000,-500.0,0.00015634,2]
[332730940,1721490660010,-500.0,0.00015634,2]
[332730941,1721490660020,-500.0,0.00015634,2]
[332730942,1721490660031,-500.0,0.00015634,2]
[332730943,1721490660040,-500.0,0.00015634,2]
[332730944,1721490660050,-984.39,0.00015634,2]
[332730945,1721490660060,-504.399664,0.00015634,2]
[332730946,1721490660070,-500.0,0.00015634,2]
[332730947,1721490660079,-994.69,0.00015634,2]
[332730948,1721490660089,-500.0,0.00015634,2]
[332730949,1721490660099,-737.79,0.00015634,2]
[332730950,1721490660108,-500.0,0.00015634,2]
[332730951,1721490660118,-500.0,0.00015634,2]
[332730952,1721490660128,-500.0,0.00015655,2]
[332730953,1721490660138,-2103.62,0.00015675,2]
[332730954,1721490660148,-200.0,0.00015676,2]
[332730955,1721490660157,-200.0,0.00015676,2]
[332730956,1721490660167,-16036.93020364,0.00015707,2]
[332730957,1721490660177,-575513.63839279,0.00015707,2]
[332730958,1721490660186,-10602.80442942,0.00015707,2]
[332730959,1721490660196,-2084.63785308,0.00015708,2]
[332730960,1721490660206,-1638.62228996,0.00015708,2]
[332730961,1721490660219,-2708.88208775,0.00015708,2]
[332730962,1721490660228,-3085.61095118,0.00015708,2]
[332730963,1721490660238,-9635.93595369,0.00015708,2]
[332730964,1721490660252,-2123.34975363,0.00015708,2]
[332730965,1721490660262,-5481.02975558,0.00015708,2]
[332730966,1721490660272,-4375.59670388,0.00015708,2]
[332730967,1721490660281,-1161.38988049,0.00015708,2]
[332730968,1721490660291,-6995.74191931,0.00015708,2]
[332730969,1721490660300,-1542.39485247,0.00015708,2]
[332730970,1721490660309,-1510.9940082,0.00015708,2]
[332730971,1721490660319,-5513.05891957,0.00015708,2]
[332730972,1721490660328,-156.2865266,0.00015746,2]
[332730973,1721490660338,-319.30268651,0.00015746,2]
[332730974,1721490660347,-2340.91350928,0.00015761,2]
[332730975,1721490660357,-500.0,0.00015762,2]
[332730976,1721490660366,-500.0,0.00015762,2]
[332730977,1721490660375,-500.0,0.00015762,2]
[332730978,1721490660385,-989.02,0.00015762,2]
[332730979,1721490660394,-630.86,0.00015762,2]
[332730980,1721490660404,-828.19,0.00015762,2]
[332730981,1721490660413,-1071.23,0.00015762,2]
[332730982,1721490660423,-500.0,0.00015762,2]
[332730983,1721490660432,-703.44,0.00015762,2]
[332730984,1721490660441,-624.25,0.00015762,2]
[332730985,1721490660451,-500.0,0.00015762,2]
[332730986,1721490660460,-500.0,0.00015762,2]
[332730987,1721490660474,-526.52,0.00015762,2]
[332730988,1721490660484,-500.0,0.00015762,2]
[332730989,1721490660494,-1214.35,0.00015762,2]
[332730990,1721490660503,-500.0,0.00015762,2]
[332730991,1721490660513,-737.48,0.00015762,2]
[332730992,1721490660522,-500.0,0.00015762,2]
[332730993,1721490660532,-500.0,0.00015762,2]
[332730994,1721490660544,-150.0,0.00015762,2]
[332730995,1721490660554,-500.0,0.00015762,2]
[332730996,1721490660564,-506.54,0.00015762,2]
[332730997,1721490660574,-551.98,0.00015762,2]
[332730998,1721490660583,-596.4,0.00015772,2]
[332730999,1721490660593,-500.0,0.00015772,2]
[332731000,1721490660602,-588.56,0.00015772,2]
[332731001,1721490660612,-1336.55,0.00015772,2]
[332731002,1721490660621,-564.06,0.00015772,2]
[332731003,1721490660630,-781.31,0.00015772,2]
[332731004,1721490660639,-3134.46,0.00015772,2]
[332731005,1721490660649,-960.96,0.00015772,2]
[332731006,1721490660659,-738.78,0.00015772,2]
[332731007,1721490660668,-9920.47,0.00015772,2]
[332731008,1721490660678,-1954.12,0.00015772,2]
[332731009,1721490660687,-3918.54,0.00015772,2]
[332731010,1721490660696,-3036.74,0.00015772,2]
[332731011,1721490660706,-3238.59,0.00015772,2]
[332731012,1721490660716,-2305.92,0.00015772,2]
[332731013,1721490660726,-5210.73,0.00015772,2]
[332731014,1721490660735,-13029.34,0.00015772,2]
[332731015,1721490660745,-6147.63,0.00015772,2]
[332731016,1721490660754,-3092.34,0.00015772,2]
[332731017,1721490660808,-2384.71,0.00015772,2]
[332731018,1721490660818,-8339.41,0.00015772,2]
[332731019,1721490660827,-3619.84,0.00015772,2]
[332731020,1721490660836,-151.26439546,0.00015772,2]
[332731021,1721490660847,-1326.31,0.00015772,2]
[332731022,1721490660856,-856.42,0.00015772,2]